{"text_format":"1","workbook":"xlsx","n_sheets":2,"sheets":["BL-F-038","Configuración"],"not_rendered":{"charts":0,"images":1,"macros":1,"external_links":0,"defined_names":0,"comments":0,"pivot_tables":0},"unopened":[],"bounds":{"document_bytes":16777216,"sheet_cells":100000,"rows_first":2000,"rows_last":500,"rows_between":2000,"halvings":0,"cell_chars":16384,"cell_head_chars":4096},"cells_cut":0,"cells_raw":0,"read":"whole","date_system":"1900"}

{"sheet":"BL-F-038","index":0,"n_rows":59,"n_cols":12,"rows_kept":59,"cut":false,"hidden":false,"merged":[[5,1,5,2],[5,3,5,6],[7,1,7,10],[1,2,1,10],[2,2,2,10],[3,2,3,10],[4,1,4,2],[4,3,4,6],[4,9,4,10],[5,7,5,8]]}
[]
[null,null,"LISTADO DE TÍTULOS A DONAR"]
[null,null,"Biblioteca -  Área de Colecciones"]
[]
[null,"Nombre y Apellido o Razón Social del Donante:",null,null,null,null,null,"N.° teléfono de contacto:"]
[null,"Correo electrónico:",null,null,null,null,null,"Fecha: ___________________________________________"]
[]
[null,"Agradecemos diligencie la siguiente información para cada uno de los títulos que desea donar; en caso de no contar con ella o que esta no exista, por favor deje el espacio en blanco."]
[null,"N.°","Clase de material","Autor del material","Título de material","Código ISBN o ISSN","Editorial","Fecha de publicación","Volumen, tomo y N°","N° ejemplares","Estado de material","Especificación del estado del material"]
[null,{"$f":"+ROW()-9","v":1},"Seleccione...          "]
[null,2,"Seleccione...          "]
[null,3,"Seleccione...          "]
[null,4,"Seleccione...          "]
[null,5,"Seleccione...          "]
[null,6,"Seleccione...          "]
[null,7,"Seleccione...          "]
[null,8,"Seleccione...          "]
[null,9,"Seleccione...          "]
[null,10,"Seleccione...          "]
[null,11,"Seleccione...          "]
[null,12,"Seleccione...          "]
[null,13,"Seleccione...          "]
[null,14,"Seleccione...          "]
[null,15,"Seleccione...          "]
[null,16,"Seleccione...          "]
[null,17,"Seleccione...          "]
[null,18,"Seleccione...          "]
[null,19,"Seleccione...          "]
[null,20,"Seleccione...          "]
[null,21,"Seleccione...          "]
[null,22,"Seleccione...          "]
[null,23,"Seleccione...          "]
[null,24,"Seleccione...          "]
[null,25,"Seleccione...          "]
[null,26,"Seleccione...          "]
[null,27,"Seleccione...          "]
[null,28,"Seleccione...          "]
[null,29,"Seleccione...          "]
[null,30,"Seleccione...          "]
[null,31,"Seleccione...          "]
[null,32,"Seleccione...          "]
[null,{"$f":"+ROW()-9","v":33},"Seleccione...          "]
[null,34,"Seleccione...          "]
[null,35,"Seleccione...          "]
[null,36,"Seleccione...          "]
[null,37,"Seleccione...          "]
[null,38,"Seleccione...          "]
[null,39,"Seleccione...          "]
[null,40,"Seleccione...          "]
[null,41,"Seleccione...          "]
[null,42,"Seleccione...          "]
[null,43,"Seleccione...          "]
[null,44,"Seleccione...          "]
[null,45,"Seleccione...          "]
[null,46,"Seleccione...          "]
[null,47,"Seleccione...          "]
[null,48,"Seleccione...          "]
[null,49,"Seleccione...          "]
[null,50,"Seleccione...          "]

{"sheet":"Configuración","index":1,"n_rows":16,"n_cols":3,"rows_kept":16,"cut":false,"hidden":false,"merged":[]}
[]
["Tipo_Material","ESTADO FISICO DEL MATERIAL ","Especificación del estado del material"]
["Seleccione...          ","Seleccione...          ","Seleccione...          "]
["Libro               ","Nuevo ","Páginas mutiladas, faltantes o rasgadas"]
["Multimedia (CD-DVD, Película, cassette musica, USB)          ","Usado en buen estado ","Rayado con lápiz o esfero"]
["Fascículo Revista                                    ","Usado con deterioro físico. Favor especificar el deterioro y/o daño en la siguiente celda","Hojas resaltadas"]
["Folleto","Usado con daño biológico . Favor especificar el deterioro y/o daño en la siguiente celda","Manchas por alimentos, cintas, grasas, tintas, sellos, entre otros."]
[null,"Usado con daño ambiental. Favor especificar el deterioro y/o daño en la siguiente celda","Páginas arrugadas, dobladas, perforadas"]
[null,"Usado con daño químico. Favor especificar el deterioro y/o daño en la siguiente celda","Daño biológicos: hongos"]
[null,"Fotocopia","Daño biológicos: insectos"]
[null,null,"Daño biológicos: termitas"]
[null,null,"Daño biológicos: roedores"]
[null,null,"Daño químico: acidez del papel (amarillo/anaranjado/cafe)"]
[null,null,"Daño químico: efecto degradante por la acción de la luz y el polvo"]
[null,null,"Daño ambiental: causados por el fuego"]
[null,null,"Daño ambiental: causados por el agua"]